bitfinex/quotes_ETHUSD_20260214
["timestamp","ask_amount","ask_price","bid_price","bid_amount"]
[1771088401012,1.20089291,2083.7,2083.1,0.48516054]
[1771088401702,1.20089291,2083.7,2082.7,6.21443504]
[1771088401703,5.65065077,2083.3,2082.7,0.48616054]
[1771088401871,7.17465077,2083.3,2082.7,0.48616054]
[1771088402071,5.65065077,2083.1,2082.5,0.48616054]
[1771088402397,5.65065077,2083.1,2082.5,0.001]
[1771088402398,0.4912691,2083.0,2082.5,0.001]
[1771088403003,2.72524965,2082.9,2082.5,0.001]
[1771088404109,5.65065077,2082.6,2082.2,0.001]
[1771088404279,5.65065077,2082.6,2082.1,0.001]
[1771088404483,1.526,2082.5,2082.1,0.001]
[1771088404879,2.72652065,2082.5,2082.1,0.001]
[1771088406504,2.72652065,2082.5,2081.9,0.001]
[1771088406505,6.14191987,2082.4,2081.9,0.001]
[1771088407098,1.20059549,2082.3,2081.8,0.001]
[1771088407311,6.14191987,2082.2,2081.6,0.864]
[1771088407478,5.65065077,2081.9,2081.5,0.001]
[1771088407889,7.67091987,2082.1,2081.5,0.001]
[1771088409305,5.65065077,2081.9,2081.5,0.001]
[1771088409713,1.20076849,2082.0,2081.5,0.001]
[1771088410690,1.20071601,2082.1,2081.5,0.48616054]
[1771088410986,0.4912691,2082.5,2081.5,0.48616054]
[1771088411193,1.533,2082.4,2081.5,0.48616054]
[1771088411400,2.73353927,2082.4,2081.7,0.48516054]
[1771088412109,3.22480837,2082.4,2081.7,0.48516054]
[1771088412314,0.4912691,2082.2,2081.5,1.68717531]
[1771088412482,0.4912691,2082.2,2081.5,0.48616054]
[1771088412682,6.11661079,2082.1,2081.5,0.001]
[1771088413495,1.20076849,2082.0,2081.5,0.001]
[1771088413811,2.73376849,2082.0,2081.5,0.001]
[1771088414310,2.73376849,2082.0,2081.4,0.47009666]
[1771088414311,5.65065077,2081.9,2081.3,0.001]
[1771088415021,0.46596002,2081.8,2081.3,0.001]
[1771088415514,1.20094153,2081.7,2081.3,0.001]
[1771088417104,1.20086872,2081.9,2081.3,0.47109666]
[1771088417498,1.537,2081.8,2081.3,1.67223883]
[1771088417687,1.537,2081.8,2081.4,0.47009666]
[1771088418643,1.537,2081.9,2081.4,0.47009666]
[1771088418924,1.537,2081.9,2081.3,0.001]
[1771088419425,1.537,2081.9,2081.4,0.47009666]
[1771088420020,1.537,2081.9,2081.5,0.47009666]
[1771088420226,1.538,2082.0,2081.5,0.47009666]
[1771088420410,0.46596002,2082.3,2081.5,0.47009666]
[1771088420724,1.442,2082.2,2081.5,0.47009666]
[1771088420921,0.46596002,2082.3,2081.5,0.47009666]
[1771088421114,1.537,2082.1,2081.5,0.47009666]
[1771088422207,1.537,2082.3,2081.6,0.47009666]
[1771088422421,1.20048019,2082.5,2081.6,0.47009666]
[1771088422625,1.536,2082.3,2081.6,0.47009666]
[1771088422824,0.0011,2082.7,2081.6,0.47009666]
[1771088423126,0.46596002,2082.5,2081.6,0.47009666]
[1771088423313,0.46596002,2082.5,2081.4,0.47009666]
[1771088424491,0.46596002,2082.3,2081.5,0.47009666]
[1771088425126,0.46596002,2082.3,2081.3,1.67223649]
[1771088425816,0.46596002,2082.3,2081.3,0.47109666]
[1771088425995,0.46596002,2082.3,2081.4,0.47009666]
[1771088426498,1.20065315,2082.2,2081.5,1.20105693]
[1771088426701,2.73565315,2082.2,2081.6,0.47009666]
[1771088427215,1.20063546,2082.3,2081.6,0.47009666]
[1771088427821,0.46596002,2082.2,2081.4,0.47009666]
[1771088428229,0.46596002,2082.2,2081.3,0.001]
[1771088428411,1.20071082,2082.1,2081.3,1.67225785]
[1771088428628,1.20071082,2082.1,2081.4,0.47009666]
[1771088428824,1.535,2082.0,2081.4,0.47009666]
[1771088429028,2.73571082,2082.1,2081.4,0.47009666]
[1771088430661,2.73571082,2082.1,2081.5,1.67115359]
[1771088430944,2.73571082,2082.1,2081.6,0.47009666]
[1771088431167,1.20071082,2082.1,2081.6,0.47009666]
[1771088431837,1.535,2082.2,2081.6,0.47009666]
[1771088432015,2.73565679,2082.2,2081.6,0.47009666]
[1771088432418,1.20063095,2082.3,2081.6,0.47009666]
[1771088432734,2.73663095,2082.3,2081.8,0.47009666]
[1771088433262,2.73663095,2082.3,2081.6,0.47009666]
[1771088433739,3.20259097,2082.3,2081.4,1.2010825]
[1771088433938,0.46596002,2082.2,2081.4,1.67117916]
[1771088434717,2.73663095,2082.3,2081.3,4.80558427]
[1771088434718,1.536,2082.3,2081.5,0.47009666]
[1771088435019,1.20062724,2082.3,2081.5,0.47009666]
[1771088435414,2.73662724,2082.3,2081.5,0.47009666]
[1771088435918,2.73562724,2082.3,2081.5,0.47009666]
[1771088436832,1.535,2082.3,2081.7,0.47009666]
[1771088437249,1.20051954,2082.5,2081.7,0.47009666]
[1771088437455,2.73551954,2082.5,2081.7,0.47009666]
[1771088438258,1.20051954,2082.5,2081.7,0.47009666]
[1771088439062,1.20051954,2082.5,2081.9,0.47009666]
[1771088441063,1.20051954,2082.5,2082.0,1.6981723]
[1771088441232,1.20051954,2082.5,2082.0,0.49740381]
[1771088442335,1.20150048,2082.7,2082.0,0.49740381]
[1771088442534,1.5371,2082.7,2082.0,0.49740381]
[1771088442956,0.0011,2082.7,2082.1,1.20071082]
[1771088443146,0.0011,2082.7,2082.2,0.46673626]
[1771088443550,0.0011,2082.9,2082.4,0.46673626]
[1771088444358,0.0011,2082.9,2082.6,0.46673626]
[1771088445129,0.0011,2082.9,2082.7,1.20036491]
[1771088445843,0.0011,2082.9,2082.7,0.46673626]
[1771088447461,0.0011,2082.9,2082.8,1.20030727]
[1771088447757,0.0011,2082.9,2082.8,1.66704353]
[1771088447963,0.0011,2082.9,2082.8,0.46673626]
[1771088449058,0.0011,2082.9,2082.6,1.66711944]
[1771088449762,0.0011,2082.9,2082.6,0.46673626]
[1771088449965,0.0011,2082.9,2082.4,1.66727118]
[1771088450334,0.0011,2082.9,2082.5,0.46673626]
[1771088450974,0.0011,2082.9,2082.3,0.46673626]
[1771088451268,0.48743403,2082.9,2081.8,0.46673626]
[1771088452158,0.48633403,2082.7,2081.9,1.20082616]
[1771088452362,0.48633403,2082.7,2081.9,1.66756242]
[1771088454076,2.01533403,2082.7,2081.9,0.46673626]
[1771088454458,1.20042254,2082.6,2081.9,1.66753166]
[1771088455373,1.20042254,2082.6,2082.0,0.46673626]
[1771088456875,1.20042254,2082.6,2081.8,0.46673626]
[1771088458574,1.68675657,2082.6,2081.8,0.46673626]
[1771088460574,1.68675657,2082.6,2081.8,1.66760113]
[1771088460782,0.48633403,2082.5,2081.7,0.771]
[1771088460957,1.20042254,2082.6,2081.8,0.46673626]
[1771088462680,1.20042254,2082.6,2081.9,1.20082616]
[1771088462985,2.728408,2082.7,2082.0,0.46673626]
[1771088463975,0.48633403,2082.6,2081.8,0.46673626]
[1771088464275,2.728408,2082.7,2081.8,0.46673626]
[1771088464490,1.20138458,2082.9,2081.9,30.0]
[1771088464651,1.20135826,2082.9,2082.0,0.46673626]
[1771088464852,0.0011,2082.9,2082.2,0.46673626]
[1771088466491,0.48743403,2082.9,2082.1,1.66744708]
[1771088466682,0.48743403,2082.9,2081.9,0.46673626]
[1771088466854,1.6866413,2082.8,2081.9,1.66751079]
[1771088467579,1.6866413,2082.8,2081.8,8.60339275]
[1771088467580,0.48633403,2082.7,2081.8,5.00082699]
[1771088467781,0.48633403,2082.7,2081.9,0.46673626]
[1771088468581,2.01233403,2082.7,2081.9,0.46673626]
[1771088468781,1.526,2082.7,2081.9,0.46673626]
[1771088468980,1.20042254,2082.6,2081.9,1.66751412]
[1771088469182,1.526,2082.7,2082.0,0.46673626]
[1771088469397,1.20036795,2082.7,2082.0,0.46673626]
[1771088469687,1.20036795,2082.7,2081.8,8.60344359]
[1771088469688,1.20036795,2082.7,2081.8,5.46757958]
[1771088469849,1.20036795,2082.7,2081.9,0.46673626]
[1771088470982,1.68670198,2082.7,2081.9,0.46673626]
[1771088471784,1.68670198,2082.7,2081.9,1.66752328]
[1771088474158,1.68670198,2082.7,2081.9,0.46673626]
[1771088474359,1.68670198,2082.7,2081.9,1.66755657]
[1771088475081,0.45374018,2082.6,2081.7,1.67977073]
[1771088476379,1.65422037,2082.5,2081.7,1.67979784]
[1771088476771,1.65422037,2082.5,2081.7,0.47886224]
[1771088477164,1.65422037,2082.5,2081.7,1.67979991]
[1771088477365,1.65422037,2082.5,2081.7,0.47886224]
[1771088478069,0.45374018,2082.4,2081.6,2.60195802]
[1771088479162,1.65433567,2082.3,2081.6,2.60195802]
[1771088479682,1.20059549,2082.3,2081.7,0.47886224]
[1771088481495,1.524,2082.5,2081.7,0.47886224]
[1771088481691,6.32584395,2082.6,2081.9,0.47886224]
[1771088482082,4.80184395,2082.6,2081.9,0.47886224]
[1771088483671,4.80184395,2082.6,2082.0,0.47886224]
[1771088485298,5.25558413,2082.6,2081.8,1.67970596]
[1771088485680,5.25558413,2082.6,2081.9,0.47886224]
[1771088486079,0.45374018,2082.5,2081.8,1.20087747]
[1771088486289,0.45374018,2082.5,2081.8,1.67973971]
[1771088487167,0.45374018,2082.5,2081.8,0.47886224]
[1771088487677,5.65657136,2082.2,2081.6,0.47986224]
[1771088487987,1.20071082,2082.1,2081.6,0.001]
[1771088489098,0.45374018,2082.0,2081.3,0.001]
[1771088489688,0.45374018,2082.0,2081.5,0.001]
[1771088489876,1.20082616,2081.9,2081.3,0.001]
[1771088490469,1.528,2081.8,2081.3,0.001]
[1771088490677,1.528,2081.8,2081.3,0.47986224]
[1771088490874,1.20082616,2081.9,2081.3,0.47986224]
[1771088491089,2.72882616,2081.9,2081.3,0.47986224]
[1771088491303,1.20082616,2081.9,2081.3,0.47986224]
[1771088492696,1.20082616,2081.9,2081.3,0.001]
[1771088492897,1.20082616,2081.9,2081.3,0.47986224]
[1771088493602,1.20082616,2081.9,2081.3,1.68102568]
[1771088493904,1.20082616,2081.9,2081.4,0.47886224]
[1771088494317,1.20082616,2081.9,2081.3,0.001]
[1771088494619,1.65456634,2081.9,2081.3,0.001]
[1771088496595,1.20082616,2081.9,2081.3,0.47986224]
[1771088496899,1.531,2081.8,2081.4,0.47886224]
[1771088497476,2.73181298,2082.0,2081.4,0.47886224]
[1771088498886,1.531,2082.0,2081.4,0.47886224]
[1771088499333,1.531,2082.0,2081.5,0.47886224]
[1771088499621,1.531,2082.1,2081.5,0.47886224]
[1771088500408,4.80179847,2082.6,2081.5,0.47886224]
[1771088500611,1.531,2082.5,2081.5,0.47886224]
[1771088501201,1.20053784,2082.4,2081.6,1.20099923]
[1771088501401,0.0011,2082.3,2081.7,0.45061787]
[1771088503208,0.0011,2082.3,2081.9,0.46392278]
[1771088506691,0.0011,2082.3,2081.9,1.66473838]
[1771088506902,0.0011,2082.3,2082.0,0.46392278]
[1771088508213,0.0011,2082.3,2081.8,1.66479577]
[1771088508386,0.0011,2082.3,2081.8,0.46392278]
[1771088509291,0.0011,2082.3,2081.8,1.66480051]
[1771088509491,0.0011,2082.3,2081.6,3.05791887]
[1771088509711,0.0011,2082.3,2081.7,0.46392278]
[1771088512317,0.0011,2082.3,2081.7,1.66485469]
[1771088513311,0.0011,2082.3,2081.7,0.46392278]
[1771088513536,0.0011,2082.3,2081.6,2.59397329]
[1771088513537,0.47866405,2082.3,2081.6,1.393]
[1771088513888,0.47866405,2082.3,2081.5,0.46392278]
[1771088514323,1.6782172,2082.2,2081.5,0.46392278]
[1771088514541,1.6782172,2082.2,2081.4,1.20108331]
[1771088514825,1.6782172,2082.2,2081.5,0.46392278]
[1771088515824,1.20065315,2082.2,2081.5,0.46392278]
[1771088516415,0.0011,2082.3,2081.5,1.66492859]
[1771088516614,0.0011,2082.3,2081.6,0.46392278]
[1771088519138,1.20169549,2082.3,2081.6,1.66489708]
[1771088519343,1.67925954,2082.3,2081.6,0.46392278]
[1771088519514,1.20169549,2082.3,2081.6,0.46392278]
[1771088520534,1.20169549,2082.3,2081.7,0.46392278]
[1771088521540,0.0011,2082.3,2081.8,0.46392278]
[1771088522837,0.0011,2082.3,2081.8,1.85492278]
[1771088523038,0.0011,2082.5,2082.0,0.46392278]
[1771088524238,0.0011,2082.5,2082.2,0.46392278]
[1771088526254,0.0011,2082.5,2082.0,0.46392278]
[1771088526534,0.0011,2082.5,2081.8,2.53186721]
[1771088526735,0.0011,2082.5,2081.9,0.46392278]
[1771088527741,0.0011,2082.5,2082.1,0.46392278]
[1771088528244,0.0011,2082.5,2082.3,0.46392278]
[1771088528966,0.0011,2082.5,2082.1,1.20068477]
[1771088529341,0.0011,2082.5,2082.1,0.46392278]
[1771088529545,0.0011,2082.5,2082.0,1.20074558]
[1771088529844,0.0011,2082.5,2082.1,0.46392278]
[1771088530462,0.0011,2082.5,2082.2,1.66457593]
[1771088531761,0.0011,2082.5,2082.2,0.46392278]
[1771088532670,0.47866405,2082.5,2081.6,0.46392278]
[1771088532873,0.47866405,2082.5,2081.3,0.865]
[1771088532874,0.45825115,2082.4,2081.3,0.865]
[1771088533044,0.45825115,2082.4,2081.3,0.001]
[1771088534333,0.45825115,2082.4,2081.3,1.20216213]
[1771088534533,0.45825115,2082.2,2081.3,0.47403891]
[1771088535140,0.45825115,2082.2,2081.3,0.001]
[1771088535540,0.45825115,2082.2,2081.3,1.67520992]
[1771088535960,2.71759549,2082.3,2081.4,0.47303891]
[1771088536143,1.20059549,2082.3,2081.4,0.47303891]
[1771088536870,1.20059549,2082.3,2081.4,1.67409827]
[1771088537270,1.20059549,2082.3,2081.5,0.47303891]
[1771088538055,1.20059549,2082.3,2081.4,0.47303891]
[1771088538873,4.80238198,2082.4,2081.6,0.47303891]
[1771088539373,0.45825115,2082.3,2081.4,1.20106966]
[1771088539576,0.45825115,2082.3,2081.3,1.67517093]
[1771088539875,0.45825115,2082.3,2081.4,0.47303891]
[1771088540850,4.80238198,2082.4,2081.5,1.67409584]
[1771088542694,4.80238198,2082.4,2081.5,0.47303891]
[1771088542851,4.80238198,2082.4,2081.6,1.20099923]
[1771088543052,4.80238198,2082.4,2081.6,1.67403814]
[1771088543380,4.80238198,2082.4,2081.6,0.47303891]
[1771088543681,0.45825115,2082.3,2081.4,1.2010761]
[1771088543882,0.45825115,2082.3,2081.4,1.67411501]
[1771088545179,4.80225642,2082.4,2081.5,0.47303891]
[1771088546983,1.20053784,2082.4,2081.5,0.47303891]
[1771088547197,1.20053784,2082.4,2081.7,0.47303891]
[1771088548154,1.20161702,2082.5,2081.7,0.47303891]
[1771088550187,1.20161702,2082.5,2081.8,0.47303891]
[1771088551484,0.0011,2082.5,2081.8,0.47303891]
[1771088552166,0.0011,2082.5,2081.9,1.67386507]
[1771088552367,0.0011,2082.5,2082.0,0.47303891]
[1771088554285,0.0011,2082.5,2081.8,0.47303891]
[1771088554464,0.0011,2082.5,2081.6,3.0599921]
[1771088554465,0.45935115,2082.5,2081.6,3.0599921]
[1771088554786,0.0011,2082.5,2081.7,0.47303891]
[1771088555881,0.0011,2082.5,2081.9,0.47303891]
[1771088556583,0.0011,2082.5,2082.1,0.47303891]
[1771088558592,0.0011,2082.5,2082.2,0.47303891]
[1771088561382,0.49936468,2082.5,2081.8,0.49181285]
[1771088561691,0.49936468,2082.5,2081.6,0.49181285]
[1771088561889,0.49936468,2082.5,2081.6,1.69280863]
[1771088562063,0.49936468,2082.5,2081.6,1.69280337]
[1771088562259,0.0011,2082.5,2081.7,0.49181285]
[1771088562890,0.0011,2082.5,2082.1,0.49670447]
[1771088563201,0.0011,2082.5,2081.9,0.49670447]
[1771088563389,0.0011,2082.5,2081.9,1.69752863]
[1771088563591,0.47445668,2082.5,2081.7,1.69760277]
[1771088563971,0.0011,2082.5,2081.8,0.49670447]
[1771088565407,0.0011,2082.5,2081.9,1.20082616]
[1771088565610,0.0011,2082.5,2081.9,1.69753063]
[1771088568209,0.0011,2082.5,2081.9,0.49670447]
[1771088568712,0.0011,2082.5,2081.9,1.69751156]
[1771088568898,0.0011,2082.5,2081.9,0.49670447]
[1771088569209,0.47445668,2082.5,2081.7,1.69761489]
[1771088570295,1.67389452,2082.4,2081.7,0.49670447]
[1771088571888,0.47335668,2082.3,2081.5,2.58801426]
[1771088572407,1.20065315,2082.2,2081.5,3.08471873]
[1771088573509,1.20065315,2082.2,2081.5,1.387]
[1771088573510,1.67400983,2082.2,2081.5,1.387]
[1771088574506,0.47335668,2082.1,2081.5,1.387]
[1771088574677,1.20065315,2082.2,2081.5,3.0847478]
[1771088574978,1.67400983,2082.2,2081.5,3.0847478]
[1771088579015,1.67400983,2082.2,2081.5,1.88370447]
[1771088580214,1.67400983,2082.2,2081.5,3.08475542]
[1771088580817,1.20065315,2082.2,2081.6,0.49670447]
[1771088581726,1.20064434,2082.3,2081.6,0.49670447]
[1771088582713,1.20064434,2082.3,2081.7,1.20094153]
[1771088582922,1.20064434,2082.3,2081.8,0.49670447]
[1771088583618,1.20064434,2082.3,2081.6,0.49670447]
[1771088584403,1.67400102,2082.3,2081.6,0.49670447]
[1771088585727,0.47335668,2082.2,2081.5,2.58804613]
[1771088586103,0.47335668,2082.2,2081.5,0.001]
[1771088586308,0.47335668,2082.2,2081.5,0.49770447]
[1771088587619,1.20071082,2082.1,2081.5,0.49770447]
[1771088587999,1.6740675,2082.1,2081.5,0.001]
[1771088588196,0.47335668,2082.0,2081.5,0.001]
[1771088589517,0.47335668,2081.9,2081.5,0.001]
[1771088589714,1.20088385,2081.8,2081.5,0.001]
[1771088589930,1.20088385,2081.8,2081.3,0.001]
[1771088589931,6.85839026,2081.8,2081.3,0.001]
[1771088590133,1.20088385,2081.8,2081.3,0.49770447]
[1771088591001,1.20086974,2081.9,2081.3,0.49770447]
[1771088591800,1.20086974,2081.9,2081.4,0.49670447]
[1771088594128,1.20086974,2081.9,2081.3,0.001]
[1771088594329,1.65926799,2081.9,2081.3,0.001]
[1771088594531,5.65750641,2081.6,2081.2,0.001]
[1771088595826,5.65750641,2081.6,2081.1,0.4916233]
[1771088596203,1.20105693,2081.5,2081.1,0.4916233]
[1771088596535,5.65750641,2081.4,2080.9,0.001]
[1771088596718,5.65750641,2081.4,2080.9,0.4916233]
[1771088598028,6.11590466,2081.4,2080.8,0.001]
[1771088598228,5.65750641,2081.2,2080.6,0.001]
[1771088598435,7.17350641,2081.2,2080.9,0.001]
[1771088598635,7.17350641,2081.2,2080.6,0.001]
[1771088598636,7.17350641,2081.2,2080.7,0.001]
[1771088601026,1.20128778,2081.1,2080.7,0.001]
[1771088601228,1.20128778,2081.1,2080.7,0.4916233]
[1771088601404,1.20128778,2081.1,2080.7,0.001]
[1771088602911,1.20140323,2080.9,2080.7,0.001]
[1771088603452,7.64431959,2080.8,2080.3,0.001]
[1771088603631,1.522,2080.8,2080.3,0.001]
[1771088603862,1.522,2080.8,2080.4,0.4906233]
[1771088604840,1.20128778,2081.1,2080.4,0.4906233]
[1771088605013,1.523,2081.0,2080.5,0.4906233]
[1771088605334,1.20128778,2081.1,2080.5,0.4906233]
[1771088605536,2.72428778,2081.1,2080.5,0.4906233]
[1771088606122,2.72428778,2081.1,2080.3,4.80791027]
[1771088606123,0.45839825,2080.9,2080.3,0.001]
[1771088606348,6.12231959,2080.8,2080.3,0.001]
[1771088606737,1.98239825,2080.7,2079.9,0.4906233]
[1771088606941,1.20157646,2080.6,2079.9,1.69260299]
[1771088607350,1.20157646,2080.6,2080.0,0.4906233]
[1771088608050,6.33030587,2080.7,2080.0,0.4906233]
[1771088608051,2.72555731,2080.7,2080.0,0.4906233]
[1771088608949,1.20143063,2080.9,2080.2,0.4906233]
[1771088609161,1.525,2080.8,2080.2,0.4906233]
[1771088611126,1.20151871,2080.7,2080.2,0.4906233]
[1771088611317,2.72650381,2080.8,2080.2,1.69242599]
[1771088611751,2.72646504,2080.8,2080.3,0.4906233]
[1771088612837,2.72646504,2080.8,2080.1,0.4906233]
[1771088612838,3.18486329,2080.8,2080.1,0.4906233]
[1771088613350,0.45839825,2080.7,2080.0,1.69354535]
[1771088613648,0.45839825,2080.7,2080.0,0.4916233]
[1771088614147,0.45839825,2080.7,2080.0,1.69354167]
[1771088615529,1.20157646,2080.6,2080.0,0.4916233]
[1771088616447,1.65997471,2080.6,2080.0,0.001]
[1771088618036,0.45839825,2080.5,2080.0,0.001]
[1771088619846,0.45839825,2080.4,2080.0,0.001]
[1771088620375,0.45839825,2080.2,2079.8,0.001]
[1771088621746,1.20174974,2080.3,2079.8,0.001]
[1771088621945,0.48127429,2080.7,2079.8,0.4639428]
[1771088622276,1.53,2080.6,2080.0,0.4629428]
[1771088622561,1.53,2080.6,2079.8,0.4639428]
[1771088622750,0.48127429,2080.4,2079.8,1.20302601]
[1771088622951,2.00664765,2080.6,2079.8,1.65717088]
[1771088623142,1.53,2080.6,2079.9,0.45414487]
[1771088624348,1.20163422,2080.5,2079.9,1.65609454]
[1771088624557,1.67828187,2080.5,2079.8,1.20300075]
[1771088624966,1.20163422,2080.5,2079.9,0.45414487]
[1771088625162,0.47664765,2080.4,2079.8,0.001]
[1771088626463,1.20163422,2080.5,2079.8,0.001]
[1771088626764,1.531,2080.4,2079.8,0.45514487]
[1771088627144,1.20161736,2080.6,2079.8,0.45514487]
[1771088627463,2.73261736,2080.6,2079.8,0.45514487]
[1771088628765,2.73261736,2080.6,2079.9,1.20198086]
[1771088628973,2.73261736,2080.6,2080.0,0.45414487]
[1771088630156,3.20926501,2080.6,2079.9,1.20198086]
[1771088630360,2.73261736,2080.6,2079.8,1.6571407]
[1771088630667,0.47664765,2080.5,2079.8,1.65717651]
[1771088630871,1.20169198,2080.4,2079.8,1.65717651]
[1771088631068,1.20169198,2080.4,2079.8,0.45514487]
[1771088631848,1.20169198,2080.4,2079.8,0.001]
[1771088632054,1.67833963,2080.4,2079.8,0.001]
[1771088633274,0.47664765,2080.3,2079.8,0.001]
[1771088634950,1.67845516,2080.2,2079.8,0.001]
[1771088635672,3.21145516,2080.2,2079.8,0.001]
[1771088636581,3.21145516,2080.2,2079.5,0.001]
[1771088636582,0.47664765,2080.1,2079.5,0.001]
[1771088636882,1.20192307,2080.0,2079.5,0.001]
[1771088638861,1.20192307,2080.0,2079.5,0.45514487]
[1771088639059,4.8076923,2080.1,2079.5,0.45514487]
[1771088639776,5.28433995,2080.1,2079.5,0.001]
[1771088640752,6.82033995,2080.1,2079.5,0.001]
[1771088640957,1.536,2080.1,2079.7,1.20209645]
[1771088641486,1.20184568,2080.2,2079.7,1.20209645]
[1771088641487,1.537,2080.3,2079.8,0.45414487]
[1771088643190,1.20180751,2080.2,2079.6,0.45414487]
[1771088645382,4.80701817,2080.3,2079.7,0.45414487]
[1771088647794,4.80701817,2080.3,2079.7,1.65623718]
[1771088647984,4.80701817,2080.3,2079.7,0.45414487]
[1771088649262,4.80701817,2080.3,2079.5,1.65732722]
[1771088649263,5.28366582,2080.3,2079.5,1.65732722]
[1771088649961,5.28366582,2080.3,2079.6,0.45414487]
[1771088654701,0.47832794,2080.2,2079.5,0.001]
[1771088655170,0.47832794,2080.1,2079.5,0.001]
[1771088655799,2.02032794,2080.0,2079.5,0.001]
[1771088656291,0.47832794,2079.9,2079.5,0.001]
[1771088656793,1.68042439,2079.7,2079.3,0.001]
[1771088657102,1.20209645,2079.7,2079.3,0.48611449]
[1771088657998,4.8079882,2079.9,2079.3,0.48611449]
[1771088659575,5.28631614,2079.9,2079.3,0.48611449]
[1771088659778,5.28631614,2079.9,2079.3,0.001]
[1771088662397,4.8079882,2079.9,2079.3,0.48611449]
[1771088662596,1.20196847,2080.0,2079.3,0.48611449]
[1771088662802,2.74796847,2080.0,2079.3,0.48611449]
[1771088663618,2.74790393,2080.1,2079.3,0.48611449]
[1771088664417,2.74790393,2080.1,2079.4,1.20226988]
[1771088664575,2.74790393,2080.1,2079.5,0.48511449]
[1771088665196,2.74874974,2080.3,2079.5,0.48511449]
[1771088666190,1.547,2080.3,2079.5,0.48511449]
[1771088666437,1.547,2080.3,2079.7,0.48511449]
[1771088667414,2.74880524,2080.3,2079.7,0.48511449]
[1771088667614,1.547,2080.3,2079.7,0.48511449]
[1771088668393,1.20166412,2080.5,2079.9,0.48511449]
[1771088668784,1.5481,2080.6,2079.9,0.48511449]
[1771088668989,1.20269102,2080.6,2079.9,0.48511449]
[1771088669402,0.0011,2080.6,2079.9,0.48511449]
[1771088669901,1.20268248,2080.6,2079.9,0.48511449]
[1771088670506,0.0011,2080.6,2080.1,0.48511449]
[1771088672437,1.20180751,2080.2,2079.6,1.20215426]
[1771088672632,1.20180751,2080.2,2079.6,1.68726875]
[1771088673036,1.20180751,2080.2,2079.7,0.48511449]
[1771088673702,4.80687508,2080.4,2079.7,0.48511449]
[1771088675223,1.20267646,2080.6,2079.8,1.20203865]
[1771088675429,1.20267646,2080.6,2079.8,1.68715314]
[1771088676128,1.6810044,2080.6,2079.8,1.68715314]
[1771088676431,0.47832794,2080.5,2079.8,1.68715314]
[1771088676908,0.0011,2080.6,2079.9,0.48511449]
[1771088677113,0.0011,2080.6,2080.2,0.48511449]
[1771088677409,0.0011,2080.6,2080.3,1.68686423]
[1771088677819,0.0011,2080.6,2080.3,1.20174974]
[1771088678027,0.0011,2080.6,2080.4,0.48511449]
[1771088678838,0.0011,2080.6,2080.3,1.20174974]
[1771088679853,0.0011,2080.7,2080.4,0.48511449]
[1771088681118,0.0011,2080.7,2080.2,5.30344112]
[1771088681519,0.0011,2080.7,2080.3,0.49621679]
[1771088681919,0.0011,2080.7,2080.3,1.69796052]
[1771088682648,0.0011,2080.7,2080.3,0.49621679]
[1771088683019,0.0011,2080.7,2080.2,1.20177826]
[1771088683220,0.46879881,2080.6,2079.6,30.48597995]
[1771088683436,0.46879881,2080.6,2079.7,1.85997995]
[1771088683751,0.46879881,2080.6,2079.8,0.48597995]
[1771088683960,1.20163422,2080.5,2079.8,0.48597995]
[1771088684452,0.46879881,2080.4,2079.6,3.0621333]
[1771088684638,5.66871146,2080.3,2079.6,1.374]
[1771088684946,0.46879881,2080.2,2079.6,1.374]
[1771088685126,0.46879881,2080.4,2079.6,2.57615219]
[1771088686555,1.20174974,2080.3,2079.6,3.06213214]
[1771088686761,1.20174974,2080.3,2079.7,0.48597995]
[1771088687060,4.80663262,2080.5,2079.7,0.48597995]
[1771088687930,5.27543143,2080.5,2079.7,0.48597995]
[1771088688663,0.46879881,2080.4,2079.6,1.374]
[1771088689544,0.46879881,2080.4,2079.6,1.20214556]
[1771088690359,0.46879881,2080.4,2079.5,1.68816582]
[1771088691253,0.46879881,2080.2,2079.4,2.57524149]
[1771088691884,0.46879881,2080.2,2079.4,3.06122144]
[1771088693987,1.20186529,2080.1,2079.5,0.48597995]
[1771088694273,1.6706366,2080.2,2079.5,0.48597995]
[1771088694440,1.20183779,2080.2,2079.5,0.48597995]
[1771088697672,3.21058963,2080.3,2079.6,1.68813421]
[1771088697882,3.21058963,2080.3,2079.6,0.48597995]
[1771088698561,0.46879881,2080.2,2079.4,3.06121362]
[1771088699058,2.74179082,2080.3,2079.5,0.48597995]
[1771088700285,3.21058963,2080.3,2079.6,1.68813421]
[1771088700494,1.54,2080.3,2079.7,0.48597995]
[1771088700646,1.20166382,2080.5,2079.7,0.48597995]
[1771088701877,0.46879881,2080.4,2079.5,1.20216616]
[1771088702086,0.46879881,2080.2,2079.3,0.001]
[1771088702263,1.6706641,2080.1,2079.3,1.20332499]
[1771088702571,0.46879881,2080.0,2079.3,0.001]
[1771088704485,0.46879881,2080.0,2079.1,0.001]
[1771088704486,0.46879881,2079.8,2079.1,0.001]
[1771088704774,1.20198086,2079.9,2078.8,1.55527655]
[1771088704775,0.46879881,2079.6,2078.8,0.001]
[1771088704949,0.46879881,2079.3,2078.8,0.001]
[1771088705145,1.33379881,2079.5,2078.8,0.001]
[1771088705453,0.46879881,2079.7,2078.8,1.68956486]
[1771088705650,2.00779881,2079.7,2078.8,1.68956486]
[1771088706374,0.46879881,2079.6,2078.8,1.68956486]
[1771088706571,1.20221207,2079.5,2078.8,1.68956486]
[1771088706876,1.67101088,2079.5,2078.8,0.001]
[1771088707064,1.20221207,2079.5,2078.8,1.20361402]
[1771088707663,1.20221207,2079.5,2078.8,0.001]
[1771088708962,1.20210042,2079.7,2078.9,0.48597995]
[1771088709856,1.20199723,2079.9,2079.1,0.48597995]
[1771088710054,2.74096217,2080.0,2079.1,0.48597995]
[1771088710255,4.80743284,2080.2,2079.3,0.48597995]
[1771088711083,4.80743284,2080.2,2079.4,1.20226988]
[1771088711757,1.58631569,2080.3,2079.4,1.68824983]
[1771088712079,3.2569067,2080.3,2079.4,1.68824983]
[1771088712484,0.46879881,2080.2,2079.4,1.20226988]
[1771088713183,1.20186529,2080.1,2079.3,5.27967994]
[1771088713363,1.20186529,2080.1,2079.4,0.47053106]
[1771088713659,1.20184689,2080.2,2079.4,0.47053106]
[1771088714286,0.48171152,2080.1,2079.2,1.67287738]
[1771088714496,0.04731569,2080.3,2079.3,0.47053106]
[1771088714992,0.04731569,2080.3,2079.4,30.0]
[1771088715195,0.04731569,2080.3,2079.7,0.47053106]
[1771088715795,1.20261932,2080.7,2079.7,0.47053106]